fUST/lending_fUST_20241205
["ID","MTS","AMOUNT","RATE_DAILY","PERIOD"]
[344377800,1733391045184,-500.0,0.00024657,2]
[344377801,1733391045194,-887.55,0.00024657,2]
[344377802,1733391045203,-641.15,0.00024657,2]
[344377803,1733391045213,-406.56883379,0.00024657,2]
[344377804,1733391045223,-500.0,0.00024657,2]
[344377805,1733391045232,-932.42,0.00024657,2]
[344377806,1733391045242,-1500.0,0.00024657,2]
[344377807,1733391045251,-1500.0,0.00024657,2]
[344377808,1733391045261,-1500.0,0.00024657,2]
[344377809,1733391045270,-1500.0,0.00024657,2]
[344377810,1733391045280,-1500.0,0.00024657,2]
[344377811,1733391045290,-443.0,0.00024657,2]
[344377812,1733391045299,-380.0,0.00024658,2]
[344377813,1733391045309,-151.0,0.000248,7]
[344377814,1733391045318,-151.0,0.000248,8]
[344377815,1733391045328,-1144.51140127,0.0002483,2]
[344377816,1733391045339,-500.0,0.0002483,2]
[344377817,1733391045354,-500.0,0.0002483,2]
[344377818,1733391045363,-1582.27,0.0002483,2]
[344377819,1733391045373,-500.0,0.0002483,2]
[344377820,1733391045382,-924.25,0.0002483,2]
[344377821,1733391045391,-500.0,0.0002483,2]
[344377822,1733391045401,-560.9,0.0002483,2]
[344377823,1733391045410,-500.0,0.0002483,2]
[344377824,1733391045419,-393.07625001,0.0002483,2]
[344377825,1733391045428,-500.0,0.0002483,2]
[344377826,1733391045438,-1144.51140126,0.00024848,2]
[344377827,1733391045447,-1144.51140126,0.00024865,2]
[344377828,1733391045457,-327.4,0.00024869,4]
[344377829,1733391045466,-1144.51140126,0.00024883,2]
[344377830,1733391045476,-693.01855503,0.000249,7]
[344377831,1733391045485,-2500.0,0.000249,3]
[344377832,1733391045494,-1170.96346684,0.000249,3]
[344377833,1733391045504,-151.0,0.000249,10]
[344377834,1733391045513,-151.0,0.000249,10]
[344377835,1733391045523,-1144.51140126,0.000249,2]
[344377836,1733391045532,-1627.56835077,0.000249,2]
[344377837,1733391045542,-500.0,0.0002493,2]
[344377838,1733391045551,-9138.33,0.0002493,2]
[344377839,1733391045562,-183.93192261,0.0002493,2]
[344377840,1733391045571,-1130.75,0.0002493,2]
[344377841,1733391045580,-500.0,0.0002493,2]
[344377842,1733391045590,-500.0,0.0002493,2]
[344377843,1733391045603,-831.77,0.0002493,2]
[344377844,1733391045612,-841.66,0.0002493,2]
[344377845,1733391045621,-500.0,0.0002493,2]
[344377846,1733391045630,-500.0,0.00024931,2]
[344377847,1733391045640,-500.0,0.00024931,2]
[344377848,1733391045649,-500.0,0.00024931,2]
[344377849,1733391045659,-526.51,0.00024931,2]
[344377850,1733391045668,-526.75,0.00024931,2]
[344377851,1733391045678,-500.0,0.00024931,2]
[344377852,1733391045688,-647.93577035,0.00024931,2]
[344377853,1733391045697,-500.0,0.00024931,2]
[344377854,1733391045707,-500.0,0.00024931,2]
[344377855,1733391045718,-500.0,0.00024931,2]
[344377856,1733391045727,-500.0,0.00024931,2]
[344377857,1733391045737,-500.0,0.00024931,2]
[344377858,1733391045747,-389.41298519,0.00024931,2]
[344377859,1733391045757,-500.0,0.00024931,2]
[344377860,1733391045767,-879.78,0.00024931,2]
[344377861,1733391045778,-500.0,0.00024931,2]
[344377862,1733391045787,-500.0,0.00024931,2]
[344377863,1733391045797,-659.85,0.00024931,2]
[344377864,1733391045806,-702.66,0.00024931,2]
[344377866,1733391045816,-500.0,0.00024931,2]
[344377867,1733391045825,-500.0,0.00024931,2]
[344377868,1733391045835,-860.36,0.00024931,2]
[344377869,1733391045846,-327.07214776,0.00024931,2]
[344377870,1733391045855,-500.0,0.00024931,2]
[344377871,1733391045865,-500.0,0.00024931,2]
[344377872,1733391045874,-500.0,0.00024931,2]
[344377873,1733391045883,-717.57,0.00024931,2]
[344377874,1733391045892,-500.0,0.00024931,2]
[344377876,1733391045902,-500.0,0.00024931,2]
[344377878,1733391045911,-500.0,0.00024931,2]
[344377879,1733391045919,-711.14,0.00024931,2]
[344377880,1733391045928,-4035.51,0.00024931,2]
[344377881,1733391045937,-509.65,0.00024931,2]
[344377882,1733391045946,-530.75,0.00024931,2]
[344377883,1733391045956,-842.01,0.00024931,2]
[344377884,1733391045965,-500.0,0.00024931,2]
[344377885,1733391045974,-887.55,0.00024931,2]
[344377886,1733391045983,-641.15,0.00024931,2]
[344377887,1733391045993,-500.0,0.00024931,2]
[344377888,1733391046002,-932.42,0.00024931,2]
[344377889,1733391046011,-500.0,0.00024973,2]
[344377890,1733391046021,-500.0,0.00024973,2]
[344377891,1733391046030,-604.96038645,0.00024973,2]
[344377892,1733391046040,-500.0,0.00024973,2]
[344377893,1733391046049,-500.62551465,0.00024973,2]
[344377894,1733391046058,-375.27779511,0.00024973,2]
[344377895,1733391046067,-500.7026176,0.00024973,2]
[344377896,1733391046077,-500.0,0.00024973,2]
[344377897,1733391046086,-500.53577371,0.00024973,2]
[344377898,1733391046096,-172.12178559,0.00024973,2]
[344377899,1733391046105,-153.0,0.00024978,2]
[344377900,1733391046115,-153.0,0.00024978,2]
[344377901,1733391046125,-153.0,0.00024978,2]
[344377902,1733391046135,-153.0,0.00024978,2]
[344377903,1733391046145,-153.0,0.00024978,2]
[344377904,1733391046154,-153.0,0.00024978,2]
[344377905,1733391046164,-153.0,0.00024978,2]
[344377906,1733391046173,-153.0,0.00024978,2]
[344377907,1733391046182,-153.0,0.00024978,2]
[344377908,1733391046192,-153.0,0.00024978,2]
[344377909,1733391046202,-153.0,0.00024978,2]
[344377910,1733391046211,-153.0,0.00024978,2]
[344377911,1733391046221,-153.0,0.00024978,2]
[344377912,1733391046230,-153.0,0.00024978,2]
[344377913,1733391046240,-153.0,0.00024978,2]
[344377914,1733391046249,-153.0,0.00024978,2]
[344377915,1733391046259,-153.0,0.00024978,2]
[344377916,1733391046268,-153.0,0.00024978,2]
[344377917,1733391046279,-153.0,0.00024978,2]
[344377918,1733391046288,-153.0,0.00024978,2]
[344377919,1733391046298,-350.8841143,0.00024978,2]
[344377920,1733391046307,-153.0,0.00024978,2]
[344377921,1733391046316,-153.0,0.00024978,2]
[344377922,1733391046326,-153.0,0.00024978,2]
[344377923,1733391046335,-153.0,0.00024978,2]
[344377924,1733391046347,-153.0,0.00024978,2]
[344377925,1733391046356,-153.0,0.00024978,2]
[344377926,1733391046366,-52462.90166079,0.00025,2]
[344377927,1733391046375,-150.0,0.00025,2]
[344377928,1733391046385,-254.61688668,0.00025,2]
[344377929,1733391046394,-5805.78919279,0.00025,2]
[344377930,1733391046404,-254491.65628285,0.00025,2]
[344377931,1733391046414,-348.04542599,0.00025,2]
[344377933,1733391046423,-831.0217499,0.00025,2]
[344377935,1733391046433,-3505415.48370303,0.00025,7]
[344377944,1733391051368,-4003.0065125,0.00025,7]
[344377945,1733391051520,-122683.54696504,0.00025,7]
[344377946,1733391051532,-577.9840911,0.00025,7]
[344377947,1733391051579,500.0,0.00022465,2]
[344377948,1733391051698,500.0,0.00022739,2]
[344377949,1733391051747,500.0,0.00023013,2]
[344377950,1733391051857,500.0,0.00023287,2]
[344377951,1733391051911,500.0,0.00023561,2]
[344377952,1733391051959,500.0,0.00023835,2]
[344377953,1733391072817,500.0,0.00021917,2]
[344377954,1733391072850,500.0,0.00022191,2]
[344377955,1733391072897,500.0,0.00022465,2]
[344377956,1733391072932,500.0,0.00021917,2]
[344377957,1733391072968,500.0,0.00022191,2]
[344377958,1733391073007,500.0,0.00022465,2]
[344377959,1733391073042,160.16826447,0.00022739,2]
[344377960,1733391073453,150.0,0.0002377,2]
[344377961,1733391073557,582.3590066,0.00023343,2]
[344377962,1733391073769,796.49,0.00021917,2]
[344377963,1733391073806,796.49,0.00022191,2]
[344377964,1733391073842,796.49,0.00022465,2]
[344377965,1733391073908,796.49,0.00022739,2]
[344377966,1733391074169,796.49,0.00023013,2]
[344377967,1733391074453,796.49,0.00023287,2]
[344377968,1733391074714,796.49,0.00023561,2]
[344377969,1733391074983,796.49,0.00023835,2]
[344377970,1733391078279,500.0,0.00021917,2]
[344377971,1733391078595,500.0,0.00022191,2]
[344377972,1733391078879,500.0,0.00022465,2]
[344377973,1733391079257,500.0,0.00022739,2]
[344377974,1733391079526,399.01787579,0.00023013,2]
[344377975,1733391086993,500.0,0.00021917,2]
[344377976,1733391087072,500.0,0.00021917,2]
[344377977,1733391087298,515.80901652,0.00022191,2]
[344377978,1733391087347,274.50979324,0.00022191,2]
[344377979,1733391117926,-500.0,0.00021917,2]
[344377980,1733391117953,-500.0,0.00021917,2]
[344377981,1733391117981,-305.0138027,0.00022191,2]
[344377982,1733391118008,-500.0,0.00022191,2]
[344377983,1733391118035,-500.0,0.00022191,2]
[344377984,1733391118061,-500.0,0.00022465,2]
[344377985,1733391118088,-500.0,0.00022465,2]
[344377986,1733391118116,-500.0,0.00022739,2]
[344377987,1733391118143,-500.0,0.00022739,2]
[344377988,1733391118305,500.0,0.00021917,2]
[344377989,1733391118571,500.0,0.00022191,2]
[344377990,1733391118833,500.0,0.00022465,2]
[344377991,1733391119127,500.0,0.00022739,2]
[344377992,1733391129096,-300.0,0.00023012,2]
[344377993,1733391129124,-500.0,0.00023013,2]
[344377994,1733391129151,-500.0,0.00023013,2]
[344377995,1733391129183,-500.0,0.00023013,2]
[344377996,1733391129210,-500.0,0.00023287,2]
[344377997,1733391129237,-500.0,0.00023287,2]
[344377998,1733391129263,-256.73106858,0.00023287,2]
[344377999,1733391129289,-300.0,0.0002356,2]
[344378000,1733391129315,-500.0,0.00023561,2]
[344378001,1733391129341,-500.0,0.00023561,2]
[344378002,1733391129369,-532.0,0.0002377,2]
[344378003,1733391129395,-2170.0,0.0002377,2]
[344378004,1733391129426,-2374.0,0.0002377,2]
[344378005,1733391129452,-500.0,0.00023835,2]
[344378006,1733391129483,500.0,0.00021917,2]
[344378007,1733391129518,500.0,0.00022191,2]
[344378008,1733391129689,201.25512872,0.00022465,2]
[344378012,1733391193211,4390.68077264,0.00027,30]
[344378018,1733391606672,172.031748,0.00013973,2]
[344378054,1733392040723,-2620.12173032,0.000199,2]
[344378055,1733392040746,-257.87627051,0.000199,2]
[344378056,1733392077216,-300.0,0.00019999,2]
[344378057,1733392077239,-300.0,0.00019999,2]
[344378058,1733392085679,-300.0,0.00019999,2]
[344378059,1733392085702,-300.0,0.00019999,2]
[344378063,1733392180460,217.104079,0.00013973,2]
[344378110,1733392234183,-300.0,0.00019999,2]
[344378111,1733392234194,-300.0,0.00019999,2]
[344378112,1733392234204,-43.45948258,0.0002,3]
[344378113,1733392234269,-1143.5810077,0.0002,3]
[344378114,1733392234281,-1385.95950972,0.0002,3]
[344378115,1733392234291,-1781.15924649,0.0002,3]
[344378116,1733392234304,-786.84075351,0.0002,3]
[344378117,1733392234314,-2568.0,0.0002,3]
[344378118,1733392234325,-2127.9148774,0.0002,3]
[344378119,1733392234337,-440.0851226,0.0002,3]
[344378120,1733392234347,-2568.0,0.0002,3]
[344378121,1733392234357,-47.6339503,0.0002,3]
[344378122,1733392236143,-2520.3660497,0.0002,3]
[344378123,1733392236152,-180.911091,0.00020187,2]
[344378124,1733392236161,-302.652877,0.00020279,2]
[344378125,1733392236170,-1849.10394582,0.00020295,2]
[344378127,1733392236179,-24900.0,0.00020345,2]
[344378129,1733392236189,-400.0,0.00020395,2]
[344378131,1733392236198,-217.104079,0.00020447,2]
[344378132,1733392236207,-400.0,0.0002115,2]
[344378133,1733392236217,-420.0,0.00021777,2]
[344378134,1733392236226,-1849.10394576,0.00021785,2]
[344378135,1733392236235,-178.947606,0.00021842,2]
[344378136,1733392236245,-400.0,0.00021905,2]
[344378137,1733392236255,-500.0,0.00021916,2]
[344378138,1733392236265,-256.03172314,0.00021916,2]
[344378139,1733392236275,-505.56622693,0.00021917,2]
[344378140,1733392236284,-500.0,0.00021917,2]
[344378141,1733392236293,-500.0,0.00021917,2]
[344378142,1733392236304,-500.0,0.00021917,2]
[344378143,1733392236314,-527.05025451,0.00021917,2]
[344378144,1733392236324,-500.0,0.00021917,2]
[344378145,1733392236333,-500.0,0.00021917,2]
[344378146,1733392236342,-500.0,0.00021917,2]
[344378147,1733392236352,-500.0,0.00021917,2]
[344378148,1733392236361,-500.0,0.00021917,2]
[344378149,1733392236371,-500.0,0.00021917,2]
[344378150,1733392236384,-188.12240066,0.00021917,2]
[344378151,1733392236394,-500.0,0.00021917,2]
[344378152,1733392236403,-500.0,0.00021917,2]
[344378153,1733392236413,-500.0,0.00021917,2]
[344378154,1733392236422,-500.0,0.00021917,2]
[344378155,1733392236431,-500.0,0.00021917,2]
[344378156,1733392236441,-500.0,0.00021917,2]
[344378157,1733392236451,-500.0,0.00021917,2]
[344378158,1733392236461,-500.0,0.00021917,2]
[344378159,1733392236470,-370.7932444,0.00021917,2]
[344378160,1733392236482,-500.0,0.00021917,2]
[344378161,1733392236491,-500.0,0.00021917,2]
[344378162,1733392236501,-500.0,0.00021917,2]
[344378163,1733392236511,-500.0,0.00021917,2]
[344378164,1733392236520,-500.0,0.00021917,2]
[344378165,1733392236531,-500.0,0.00021917,2]
[344378166,1733392236540,-513.2312375,0.00021917,2]
[344378167,1733392236550,-595.74515686,0.00021917,2]
[344378168,1733392236559,-500.0,0.00021917,2]
[344378169,1733392236570,-500.0,0.00021917,2]
[344378170,1733392236579,-500.0,0.00021917,2]
[344378171,1733392236589,-500.0,0.00021917,2]
[344378172,1733392236599,-500.0,0.00021917,2]
[344378173,1733392236608,-500.0,0.00021917,2]
[344378174,1733392236617,-5711.45,0.00021917,2]
[344378175,1733392236627,-500.0,0.00021917,2]
[344378176,1733392236638,-706.72,0.00021917,2]
[344378177,1733392236647,-2017.76,0.00021917,2]
[344378178,1733392236659,-500.0,0.00021917,2]
[344378179,1733392236669,-500.0,0.00021917,2]
[344378180,1733392236681,-500.0,0.00021917,2]
[344378181,1733392236695,-500.0,0.00021917,2]
[344378182,1733392236705,-500.0,0.00021917,2]
[344378183,1733392236715,-500.0,0.00021917,2]
[344378184,1733392236726,-500.0,0.00021917,2]
[344378185,1733392236735,-500.0,0.00021917,2]
[344378186,1733392236745,-500.0,0.00021917,2]
[344378187,1733392236754,-500.0,0.00021917,2]
[344378188,1733392236764,-500.0,0.00021917,2]
[344378189,1733392236774,-500.0,0.00021917,2]
[344378190,1733392236783,-519.86,0.00021917,2]
[344378191,1733392236792,-500.0,0.00021917,2]
[344378192,1733392236802,-500.0,0.00021917,2]
[344378193,1733392236811,-1318.56,0.00021917,2]
[344378194,1733392236822,-526.04,0.00021917,2]
[344378195,1733392236831,-500.0,0.00021917,2]
[344378196,1733392236840,-481.50307558,0.00021917,2]
[344378197,1733392236851,-500.0,0.00021917,2]
[344378198,1733392236860,-500.0,0.00021917,2]
[344378199,1733392236869,-220.53406475,0.00021917,7]
[344378200,1733392236879,-770.21,0.00021917,2]
[344378201,1733392236888,-500.0,0.00021917,2]
[344378202,1733392236898,-500.0,0.00021917,2]
[344378203,1733392236909,-500.0,0.00021917,2]
[344378204,1733392236921,-500.0,0.00021917,2]
[344378205,1733392236930,-500.0,0.00021917,2]
[344378206,1733392236940,-500.0,0.00021917,2]
[344378207,1733392236949,-500.0,0.00021917,2]
[344378208,1733392236959,-500.0,0.00021917,2]
[344378209,1733392236968,-500.0,0.00021917,2]
[344378210,1733392236977,-500.0,0.00021917,2]
[344378211,1733392236986,-420.0,0.00021999,2]
[344378212,1733392236995,-500.0,0.00022191,2]
[344378213,1733392237005,-500.0,0.00022191,2]
[344378214,1733392237014,-500.0,0.00022191,2]
[344378215,1733392237023,-500.0,0.00022191,2]
[344378216,1733392237032,-500.0,0.00022191,2]
[344378217,1733392237042,-500.0,0.00022191,2]
[344378218,1733392237052,-500.0,0.00022191,2]
[344378219,1733392237061,-500.0,0.00022191,2]
[344378220,1733392237073,-500.0,0.00022191,2]
[344378221,1733392237082,-500.0,0.00022191,2]
[344378222,1733392237091,-500.0,0.00022191,2]
[344378223,1733392237101,-500.0,0.00022191,2]
[344378224,1733392237110,-500.0,0.00022191,2]
[344378225,1733392237119,-520.3,0.00022191,2]
[344378226,1733392237128,-500.0,0.00022191,2]
[344378227,1733392237137,-500.0,0.00022191,2]
[344378228,1733392237147,-509.8820129,0.00022191,2]
[344378229,1733392237156,-500.0,0.00022191,2]
[344378230,1733392237166,-500.0,0.00022191,2]
[344378231,1733392237175,-500.0,0.00022191,2]
[344378232,1733392237184,-5711.45,0.00022191,2]
[344378233,1733392237194,-500.0,0.00022191,2]
[344378234,1733392237203,-706.72,0.00022191,2]
[344378235,1733392237212,-2017.76,0.00022191,2]
[344378236,1733392237221,-500.0,0.00022191,2]
[344378237,1733392237230,-500.0,0.00022191,2]
[344378238,1733392237239,-192.54016869,0.00022191,2]
[344378272,1733392238626,-307.45983131,0.00022191,2]
[344378274,1733392238635,-500.0,0.00022191,2]
[344378275,1733392238645,-500.0,0.00022191,2]
[344378277,1733392238654,-500.0,0.00022191,2]
[344378278,1733392238663,-500.0,0.00022191,2]
[344378279,1733392238672,-206.00397985,0.00022191,2]
[344378280,1733392238682,-500.0,0.00022191,2]
[344378281,1733392238695,-500.0,0.00022191,2]
[344378282,1733392238704,-500.0,0.00022191,2]
[344378283,1733392238714,-519.86,0.00022191,2]
[344378284,1733392238723,-500.0,0.00022191,2]
[344378285,1733392238733,-500.0,0.00022191,2]
[344378286,1733392238743,-1318.56,0.00022191,2]
[344378287,1733392238752,-526.04,0.00022191,2]
[344378288,1733392238761,-500.0,0.00022191,2]
[344378289,1733392238773,-500.0,0.00022191,2]
[344378290,1733392238783,-500.0,0.00022191,2]
[344378291,1733392238792,-770.21,0.00022191,2]
[344378292,1733392238802,-500.0,0.00022191,2]
[344378293,1733392238811,-500.0,0.00022191,2]
[344378294,1733392238821,-500.0,0.00022191,2]
[344378295,1733392238830,-500.0,0.00022191,2]
[344378296,1733392238839,-500.0,0.00022191,2]
[344378297,1733392238849,-500.0,0.00022191,2]
[344378298,1733392238858,-500.0,0.00022191,2]
[344378299,1733392238867,-500.0,0.00022191,2]
[344378300,1733392238877,-500.0,0.00022191,2]
[344378301,1733392238886,-500.0,0.00022191,2]
[344378302,1733392238895,-500.0,0.00022465,2]
[344378303,1733392238904,-500.0,0.00022465,2]
[344378304,1733392238913,-500.0,0.00022465,2]
[344378305,1733392238923,-500.0,0.00022465,2]
[344378306,1733392238932,-500.0,0.00022465,2]
[344378307,1733392238941,-500.0,0.00022465,2]
[344378308,1733392238951,-500.0,0.00022465,2]
[344378309,1733392238960,-500.0,0.00022465,2]
[344378310,1733392238970,-500.0,0.00022465,2]
[344378311,1733392238979,-500.0,0.00022465,2]
[344378312,1733392238988,-500.0,0.00022465,2]
[344378313,1733392238998,-500.0,0.00022465,2]
[344378314,1733392239007,-500.0,0.00022465,2]
[344378315,1733392239016,-500.0,0.00022465,2]
[344378316,1733392239025,-500.0,0.00022465,2]
[344378317,1733392239035,-500.0,0.00022465,2]
[344378318,1733392239044,-500.0,0.00022465,2]
[344378319,1733392239053,-5711.45,0.00022465,2]
[344378320,1733392239062,-500.0,0.00022465,2]
[344378321,1733392239074,-706.72,0.00022465,2]
[344378322,1733392239083,-2017.76,0.00022465,2]
[344378323,1733392239092,-500.0,0.00022465,2]
[344378324,1733392239101,-500.0,0.00022465,2]
[344378325,1733392239110,-500.0,0.00022465,2]
[344378326,1733392239121,-500.0,0.00022465,2]
[344378327,1733392239131,-500.0,0.00022465,2]
[344378328,1733392239140,-500.0,0.00022465,2]
[344378329,1733392239149,-500.0,0.00022465,2]
[344378330,1733392239158,-500.0,0.00022465,2]
[344378331,1733392239167,-500.0,0.00022465,2]
[344378332,1733392239176,-500.0,0.00022465,2]
[344378333,1733392239186,-519.86,0.00022465,2]
[344378334,1733392239195,-500.0,0.00022465,2]
[344378335,1733392239204,-500.0,0.00022465,2]
[344378336,1733392239214,-1318.56,0.00022465,2]
[344378337,1733392239224,-526.04,0.00022465,2]
[344378338,1733392239234,-500.0,0.00022465,2]
[344378339,1733392239244,-500.0,0.00022465,2]
[344378340,1733392239254,-500.0,0.00022465,2]
[344378341,1733392239264,-770.21,0.00022465,2]
[344378342,1733392239273,-500.0,0.00022465,2]
[344378343,1733392239283,-500.0,0.00022465,2]
[344378344,1733392239292,-507.48882834,0.00022465,2]
[344378345,1733392239301,-500.0,0.00022465,2]
[344378346,1733392239310,-500.0,0.00022465,2]
[344378347,1733392239319,-500.0,0.00022465,2]
[344378348,1733392239329,-500.0,0.00022465,2]
[344378349,1733392239339,-500.0,0.00022465,2]
[344378350,1733392239348,-308.54,0.00022465,2]
[344378351,1733392239358,-500.0,0.00022465,2]
[344378352,1733392239367,-500.0,0.0002265,2]
[344378353,1733392239376,-500.0,0.0002265,2]
[344378354,1733392239386,-400.0,0.00022659,2]
[344378355,1733392239396,-500.0,0.00022739,2]
[344378356,1733392239405,-500.0,0.00022739,2]
[344378357,1733392239414,-500.0,0.00022739,2]
[344378358,1733392239424,-500.0,0.00022739,2]
[344378359,1733392239433,-500.0,0.00022739,2]
[344378360,1733392239443,-500.0,0.00022739,2]
[344378361,1733392239452,-500.0,0.00022739,2]
[344378362,1733392239461,-500.0,0.00022739,2]
[344378363,1733392239470,-500.0,0.00022739,2]
[344378364,1733392239479,-500.0,0.00022739,2]
[344378365,1733392239488,-500.0,0.00022739,2]
[344378366,1733392239498,-500.0,0.00022739,2]
[344378367,1733392239507,-373.53199415,0.00022739,2]
[344378368,1733392239517,-5711.45,0.00022739,2]
[344378369,1733392239526,-500.0,0.00022739,2]
[344378370,1733392239537,-706.72,0.00022739,2]
[344378371,1733392239546,-2017.76,0.00022739,2]
[344378372,1733392239556,-500.0,0.00022739,2]
[344378373,1733392239566,-500.0,0.00022739,2]
[344378374,1733392239577,-500.0,0.00022739,2]
[344378375,1733392239586,-500.0,0.00022739,2]
[344378376,1733392239595,-500.0,0.00022739,2]
[344378377,1733392239605,-500.0,0.00022739,2]
[344378378,1733392239614,-500.0,0.00022739,2]
[344378379,1733392239623,-500.0,0.00022739,2]
[344378380,1733392239633,-500.0,0.00022739,2]
[344378381,1733392239642,-509.95964966,0.00022739,2]
[344378382,1733392239651,-519.86,0.00022739,2]
[344378383,1733392239661,-500.0,0.00022739,2]
[344378384,1733392239671,-500.0,0.00022739,2]
[344378385,1733392239682,-1318.56,0.00022739,2]
[344378386,1733392239697,-526.04,0.00022739,2]
[344378387,1733392239706,-500.0,0.00022739,2]
[344378388,1733392239715,-500.0,0.00022739,2]
[344378389,1733392239724,-770.21,0.00022739,2]
[344378390,1733392239734,-500.0,0.00022739,2]
[344378391,1733392239743,-500.0,0.00022739,2]
[344378392,1733392239752,-500.0,0.00022739,2]
[344378393,1733392239762,-500.0,0.00022739,2]
[344378394,1733392239772,-500.0,0.00022739,2]
[344378395,1733392239781,-500.0,0.00022739,2]
[344378396,1733392239792,-500.0,0.00022739,2]
[344378397,1733392239802,-500.0,0.00022739,2]
[344378398,1733392239812,-501.84,0.00023,2]
[344378399,1733392239822,-500.0,0.00023,2]
[344378400,1733392239831,-337.43233976,0.00023012,2]
[344378401,1733392239840,-500.0,0.00023013,2]
[344378402,1733392239851,-500.0,0.00023013,2]
[344378403,1733392239860,-500.0,0.00023013,2]
[344378404,1733392239869,-500.0,0.00023013,2]
[344378405,1733392239996,-500.0,0.00023013,2]
[344378406,1733392240008,-500.0,0.00023013,2]
[344378407,1733392240018,-500.0,0.00023013,2]
[344378408,1733392240027,-500.0,0.00023013,2]
[344378409,1733392240039,-500.0,0.00023013,2]
[344378410,1733392240049,-230.05947199,0.00023013,2]
[344378411,1733392240058,-500.0,0.00023013,2]
[344378412,1733392240068,-156.00442909,0.00023013,2]
[344378413,1733392240079,-5711.45,0.00023013,2]
[344378414,1733392240089,-500.0,0.00023013,2]
[344378415,1733392240098,-706.72,0.00023013,2]
[344378416,1733392240108,-2017.76,0.00023013,2]
[344378417,1733392240117,-500.0,0.00023013,2]
[344378418,1733392240127,-500.0,0.00023013,2]
[344378419,1733392240136,-500.0,0.00023013,2]
[344378420,1733392240146,-500.0,0.00023013,2]
[344378422,1733392240156,-500.0,0.00023013,2]
[344378423,1733392240165,-500.0,0.00023013,2]
[344378424,1733392240174,-232.44053375,0.00023013,2]
[344378425,1733392240183,-500.0,0.00023013,2]
[344378426,1733392240193,-500.0,0.00023013,2]
[344378427,1733392240202,-519.86,0.00023013,2]
[344378428,1733392240212,-500.0,0.00023013,2]
[344378429,1733392240221,-500.0,0.00023013,2]
[344378430,1733392240231,-1318.56,0.00023013,2]
[344378431,1733392240241,-526.04,0.00023013,2]
[344378432,1733392240251,-500.0,0.00023013,2]
[344378433,1733392240260,-500.0,0.00023013,2]
[344378434,1733392240270,-770.21,0.00023013,2]
[344378436,1733392240279,-500.0,0.00023013,2]
[344378437,1733392240288,-500.0,0.00023013,2]
[344378438,1733392240298,-500.0,0.00023013,2]
[344378439,1733392240307,-500.0,0.00023013,2]
[344378440,1733392240317,-500.0,0.00023013,2]
[344378441,1733392240328,-500.0,0.00023013,2]
[344378442,1733392240338,-500.0,0.00023013,2]
[344378443,1733392240347,-500.0,0.00023013,2]
[344378444,1733392240356,-1000.0,0.00023198,2]